fUSD/lending_fUSD_20240331
["ID","MTS","AMOUNT","RATE_DAILY","PERIOD"]
[321079742,1711883465125,-465.12622859,0.00043287,4]
[321079743,1711883465135,-500.0,0.00043287,4]
[321079744,1711883465145,-679.43,0.00043287,2]
[321079745,1711883465155,-540.06120263,0.00043287,4]
[321079746,1711883465165,-150.0,0.00043287,4]
[321079747,1711883465176,-555.12,0.00043287,4]
[321079748,1711883465187,-500.0,0.00043287,2]
[321079749,1711883465197,-500.0,0.00043287,4]
[321079750,1711883465208,-549.48,0.00043287,4]
[321079751,1711883465219,-1070.48,0.00043287,4]
[321079752,1711883465229,-500.0,0.00043287,4]
[321079753,1711883465240,-500.0,0.00043287,4]
[321079754,1711883465250,-500.0,0.00043287,4]
[321079755,1711883465260,-1862.31,0.00043287,4]
[321079756,1711883465270,-2605.92,0.00043287,4]
[321079757,1711883465280,-9670.17,0.00043287,4]
[321079758,1711883465291,-1122.17,0.00043287,4]
[321079759,1711883465301,-316.89881246,0.00043287,4]
[321079760,1711883465312,-500.0,0.00043287,4]
[321079761,1711883465322,-1712.16,0.00043287,4]
[321079762,1711883465332,-2748.38,0.00043287,4]
[321079763,1711883465342,-500.0,0.00043287,4]
[321079764,1711883465353,-500.0,0.00043287,4]
[321079765,1711883465364,-500.0,0.00043287,4]
[321079766,1711883465374,-4301.58,0.00043287,4]
[321079767,1711883465384,-531.6,0.00043287,4]
[321079768,1711883465394,-500.0,0.00043287,4]
[321079769,1711883465404,-500.0,0.00043287,4]
[321079770,1711883465602,-9908.7,0.00043287,4]
[321079771,1711883465616,-3656.45,0.00043287,4]
[321079772,1711883465625,-707.92,0.00043287,4]
[321079773,1711883465636,-2921.85,0.00043287,4]
[321079774,1711883465646,-500.0,0.00043287,4]
[321079775,1711883465655,-500.0,0.00043287,4]
[321079776,1711883465666,-3783.97,0.00043287,4]
[321079777,1711883465677,-500.0,0.00043287,4]
[321079778,1711883465687,-2102.16,0.00043287,4]
[321079779,1711883465697,-15160.16,0.00043287,4]
[321079780,1711883465709,-2273.33,0.00043287,4]
[321079781,1711883465719,-1657.86,0.00043287,4]
[321079782,1711883465729,-500.0,0.00043287,4]
[321079783,1711883465739,-3435.73,0.00043287,4]
[321079784,1711883465748,-500.0,0.00043287,4]
[321079785,1711883465759,-500.0,0.00043287,4]
[321079786,1711883465768,-500.0,0.00043287,4]
[321079787,1711883465779,-3547.44,0.00043287,4]
[321079788,1711883465789,-2803.49,0.00043287,4]
[321079789,1711883465799,-500.0,0.00043287,4]
[321079790,1711883465809,-500.0,0.00043287,4]
[321079791,1711883465819,-4194.52,0.00043287,4]
[321079792,1711883465829,-9215.25,0.00043287,4]
[321079793,1711883465839,-500.0,0.00043287,4]
[321079794,1711883465849,-500.0,0.00043287,4]
[321079795,1711883465859,-2011.87,0.00043287,4]
[321079796,1711883465869,-500.0,0.00043287,4]
[321079797,1711883465879,-500.0,0.00043287,4]
[321079798,1711883465890,-4752.87,0.00043287,4]
[321079799,1711883465900,-500.0,0.00043287,4]
[321079800,1711883465910,-2598.4,0.00043287,4]
[321079801,1711883465919,-2126.31,0.00043287,4]
[321079802,1711883465929,-11877.83,0.00043287,4]
[321079803,1711883465940,-518.02,0.00043287,4]
[321079804,1711883465951,-1937.78,0.00043287,4]
[321079805,1711883465961,-10453.94,0.00043287,4]
[321079806,1711883465971,-1076.45,0.00043287,4]
[321079807,1711883465981,-500.0,0.00043287,4]
[321079808,1711883465991,-500.0,0.00043287,4]
[321079809,1711883466001,-500.0,0.00043287,4]
[321079810,1711883466012,-2336.79,0.00043287,4]
[321079811,1711883466021,-552.15,0.00043287,4]
[321079812,1711883466032,-1920.41,0.00043287,4]
[321079813,1711883466043,-2290.08,0.00043287,4]
[321079814,1711883466053,-1182.09,0.00043287,4]
[321079815,1711883466064,-3941.13,0.00043287,4]
[321079816,1711883466075,-2482.25,0.00043287,4]
[321079817,1711883466085,-16241.59,0.00043287,4]
[321079818,1711883466096,-3222.61,0.00043287,4]
[321079819,1711883466107,-500.0,0.00043287,4]
[321079820,1711883466118,-583.38286333,0.00043287,4]
[321079821,1711883466128,-535.83,0.00043287,4]
[321079822,1711883466138,-500.0,0.00043287,4]
[321079823,1711883466149,-2590.66,0.00043287,4]
[321079824,1711883466159,-609.57,0.00043287,4]
[321079825,1711883466169,-3509.53,0.00043287,4]
[321079826,1711883466180,-500.0,0.00043287,4]
[321079827,1711883466190,-5528.21,0.00043287,4]
[321079828,1711883466200,-2238.05,0.00043287,4]
[321079829,1711883466211,-663.74,0.00043287,4]
[321079830,1711883466222,-2433.18,0.00043287,4]
[321079831,1711883466232,-18780.41,0.00043287,4]
[321079832,1711883466242,-502.77,0.00043287,4]
[321079833,1711883466252,-1950.88,0.00043287,4]
[321079834,1711883466263,-500.0,0.00043287,4]
[321079835,1711883466273,-608.39,0.00043287,4]
[321079836,1711883466284,-16662.45,0.00043287,4]
[321079837,1711883466294,-1551.3,0.00043287,4]
[321079838,1711883466304,-682.79,0.00043287,4]
[321079839,1711883466315,-500.0,0.00043287,4]
[321079840,1711883466325,-4294.08,0.00043287,4]
[321079841,1711883466335,-935.22,0.00043287,4]
[321079842,1711883466345,-1935.59,0.00043287,4]
[321079843,1711883466355,-1000.0,0.00043288,14]
[321079844,1711883466365,-1000.0,0.00043356,14]
[321079845,1711883466377,-1000.0,0.00043425,14]
[321079846,1711883466388,-417.69,0.00043438,2]
[321079847,1711883466398,-1000.0,0.00043493,14]
[321079848,1711883466408,-481.97,0.000435,7]
[321079849,1711883466422,-545.59,0.000435,7]
[321079850,1711883466432,-749.0,0.000435,33]
[321079851,1711883466441,-157.591198,0.00043533,48]
[321079852,1711883466452,-500.0,0.00043561,4]
[321079853,1711883466461,-679.43,0.00043561,2]
[321079854,1711883466471,-180.39361359,0.00043561,4]
[321079855,1711883466480,-555.12,0.00043561,4]
[321079856,1711883466493,-500.0,0.00043561,2]
[321079857,1711883466503,-500.0,0.00043561,4]
[321079858,1711883466513,-549.48,0.00043561,4]
[321079859,1711883466523,-1070.48,0.00043561,4]
[321079860,1711883466533,-500.0,0.00043561,4]
[321079861,1711883466543,-500.0,0.00043561,4]
[321079862,1711883466553,-500.0,0.00043561,4]
[321079863,1711883466563,-1862.31,0.00043561,4]
[321079864,1711883466572,-2605.92,0.00043561,4]
[321079865,1711883466582,-9670.17,0.00043561,4]
[321079866,1711883466592,-1122.17,0.00043561,4]
[321079867,1711883466601,-500.0,0.00043561,4]
[321079868,1711883466611,-1712.16,0.00043561,4]
[321079869,1711883466621,-2748.38,0.00043561,4]
[321079870,1711883466630,-500.0,0.00043561,4]
[321079871,1711883466640,-500.0,0.00043561,4]
[321079872,1711883466649,-427.53985348,0.00043561,4]
[321079873,1711883466658,-4301.58,0.00043561,4]
[321079874,1711883466668,-531.6,0.00043561,4]
[321079875,1711883466677,-500.0,0.00043561,4]
[321079876,1711883466686,-500.0,0.00043561,4]
[321079877,1711883466699,-9908.7,0.00043561,4]
[321079878,1711883466708,-3656.45,0.00043561,4]
[321079879,1711883466718,-707.92,0.00043561,4]
[321079880,1711883466728,-2921.85,0.00043561,4]
[321079881,1711883466738,-500.0,0.00043561,4]
[321079882,1711883466748,-500.0,0.00043561,4]
[321079883,1711883466758,-3783.97,0.00043561,4]
[321079884,1711883466768,-500.0,0.00043561,4]
[321079885,1711883466777,-2102.16,0.00043561,4]
[321079886,1711883466787,-15160.16,0.00043561,4]
[321079887,1711883466797,-2273.33,0.00043561,4]
[321079888,1711883466807,-1657.86,0.00043561,4]
[321079889,1711883466817,-500.0,0.00043561,4]
[321079890,1711883466827,-3435.73,0.00043561,4]
[321079891,1711883466838,-500.0,0.00043561,4]
[321079892,1711883466847,-500.0,0.00043561,4]
[321079893,1711883466857,-500.0,0.00043561,4]
[321079894,1711883466866,-3547.44,0.00043561,4]
[321079895,1711883466875,-2803.49,0.00043561,4]
[321079896,1711883466885,-500.0,0.00043561,4]
[321079897,1711883466894,-500.0,0.00043561,4]
[321079898,1711883466903,-4194.52,0.00043561,4]
[321079899,1711883466913,-9215.25,0.00043561,4]
[321079900,1711883466922,-500.0,0.00043561,4]
[321079901,1711883466931,-500.0,0.00043561,4]
[321079902,1711883466942,-2011.87,0.00043561,4]
[321079903,1711883466951,-500.0,0.00043561,4]
[321079904,1711883466961,-500.0,0.00043561,4]
[321079905,1711883466971,-4752.87,0.00043561,4]
[321079906,1711883466981,-500.0,0.00043561,4]
[321079907,1711883466990,-2598.4,0.00043561,4]
[321079908,1711883467000,-2126.31,0.00043561,4]
[321079909,1711883467009,-11877.83,0.00043561,4]
[321079910,1711883467019,-518.02,0.00043561,4]
[321079911,1711883467029,-1937.78,0.00043561,4]
[321079912,1711883467040,-10453.94,0.00043561,4]
[321079913,1711883467050,-1076.45,0.00043561,4]
[321079914,1711883467059,-500.0,0.00043561,4]
[321079915,1711883467069,-500.0,0.00043561,4]
[321079916,1711883467079,-500.0,0.00043561,4]
[321079917,1711883467089,-2336.79,0.00043561,4]
[321079918,1711883467099,-552.15,0.00043561,4]
[321079919,1711883467109,-1920.41,0.00043561,4]
[321079920,1711883467120,-2290.08,0.00043561,4]
[321079921,1711883467129,-1182.09,0.00043561,4]
[321079922,1711883467140,-3941.13,0.00043561,4]
[321079923,1711883467149,-2482.25,0.00043561,4]
[321079924,1711883467160,-16241.59,0.00043561,4]
[321079925,1711883467170,-3222.61,0.00043561,4]
[321079926,1711883467180,-500.0,0.00043561,4]
[321079927,1711883467190,-535.83,0.00043561,4]
[321079928,1711883467200,-500.0,0.00043561,4]
[321079929,1711883467209,-2590.66,0.00043561,4]
[321079930,1711883467219,-609.57,0.00043561,4]
[321079931,1711883467229,-3509.53,0.00043561,4]
[321079932,1711883467239,-500.0,0.00043561,4]
[321079933,1711883467248,-5528.21,0.00043561,4]
[321079934,1711883467257,-2238.05,0.00043561,4]
[321079935,1711883467267,-663.74,0.00043561,4]
[321079936,1711883467277,-2433.18,0.00043561,4]
[321079937,1711883467287,-18780.41,0.00043561,4]
[321079938,1711883467296,-502.77,0.00043561,4]
[321079939,1711883467306,-1950.88,0.00043561,4]
[321079940,1711883467316,-500.0,0.00043561,4]
[321079941,1711883467326,-608.39,0.00043561,4]
[321079942,1711883467336,-16662.45,0.00043561,4]
[321079943,1711883467346,-1551.3,0.00043561,4]
[321079944,1711883467356,-682.79,0.00043561,4]
[321079945,1711883467366,-500.0,0.00043561,4]
[321079946,1711883467376,-4294.08,0.00043561,4]
[321079947,1711883467386,-935.22,0.00043561,4]
[321079948,1711883467395,-1935.59,0.00043561,4]
[321079949,1711883467405,-155.57501818,0.00043561,2]
[321079950,1711883467420,-1000.0,0.00043562,14]
[321079951,1711883467430,-4097.7455325,0.00043627,18]
[321079952,1711883467439,-1000.0,0.0004363,14]
[321079953,1711883467448,-2205.06765989,0.0004366,2]
[321079954,1711883467462,-1000.0,0.00043699,14]
[321079955,1711883467473,-1000.0,0.00043767,14]
[321079956,1711883467483,-500.0,0.00043835,4]
[321079957,1711883467494,-679.43,0.00043835,2]
[321079958,1711883467505,-555.12,0.00043835,4]
[321079959,1711883467515,-500.0,0.00043835,2]
[321079960,1711883467525,-159.36610637,0.00043835,4]
[321079961,1711883467536,-549.48,0.00043835,4]
[321079962,1711883467546,-1070.48,0.00043835,4]
[321079963,1711883467557,-500.0,0.00043835,4]
[321079964,1711883467567,-500.0,0.00043835,4]
[321079965,1711883467577,-500.0,0.00043835,4]
[321079966,1711883467588,-1862.31,0.00043835,4]
[321079967,1711883467598,-2605.92,0.00043835,4]
[321079968,1711883467609,-9670.17,0.00043835,4]
[321079969,1711883467620,-1122.17,0.00043835,4]
[321079970,1711883467630,-500.0,0.00043835,4]
[321079971,1711883467640,-1712.16,0.00043835,4]
[321079972,1711883467651,-2748.38,0.00043835,4]
[321079973,1711883467661,-500.0,0.00043835,4]
[321079974,1711883467673,-500.0,0.00043835,4]
[321079975,1711883467683,-4301.58,0.00043835,4]
[321079976,1711883467692,-531.6,0.00043835,4]
[321079977,1711883467703,-500.0,0.00043835,4]
[321079978,1711883467714,-500.0,0.00043835,4]
[321079979,1711883467725,-9908.7,0.00043835,4]
[321079980,1711883467734,-3656.45,0.00043835,4]
[321079981,1711883467745,-707.92,0.00043835,4]
[321079982,1711883467755,-2921.85,0.00043835,4]
[321079983,1711883467765,-500.0,0.00043835,4]
[321079984,1711883467776,-500.0,0.00043835,4]
[321079985,1711883467787,-3783.97,0.00043835,4]
[321079986,1711883467797,-2102.16,0.00043835,4]
[321079987,1711883467807,-500.0,0.00043835,4]
[321079988,1711883467816,-15160.16,0.00043835,4]
[321079989,1711883467825,-2273.33,0.00043835,4]
[321079990,1711883467835,-1657.86,0.00043835,4]
[321079991,1711883467845,-588.1,0.00043835,16]
[321079992,1711883467855,-588.1,0.00043835,16]
[321079993,1711883467866,-588.1,0.00043835,16]
[321079994,1711883467876,-588.1,0.00043835,16]
[321079995,1711883467886,-588.1,0.00043835,16]
[321079996,1711883467895,-588.1,0.00043835,16]
[321079997,1711883467905,-588.1,0.00043835,16]
[321079998,1711883467915,-588.1,0.00043835,16]
[321079999,1711883467925,-588.1,0.00043835,16]
[321080000,1711883467935,-588.1,0.00043835,16]
[321080001,1711883467944,-588.1,0.00043835,16]
[321080002,1711883467954,-344.24745863,0.00043835,4]
[321080003,1711883467964,-3435.73,0.00043835,4]
[321080004,1711883467974,-500.0,0.00043835,4]
[321080005,1711883467983,-502.01675382,0.00043835,4]
[321080006,1711883468037,-500.0,0.00043835,4]
[321080007,1711883468048,-3547.44,0.00043835,4]
[321080008,1711883468058,-2803.49,0.00043835,4]
[321080009,1711883468067,-500.0,0.00043835,4]
[321080010,1711883468077,-500.0,0.00043835,4]
[321080011,1711883468086,-4194.52,0.00043835,4]
[321080012,1711883468095,-9215.25,0.00043835,4]
[321080013,1711883468105,-500.0,0.00043835,4]
[321080014,1711883468114,-500.0,0.00043835,4]
[321080015,1711883468123,-2011.87,0.00043835,4]
[321080016,1711883468132,-500.0,0.00043835,4]
[321080017,1711883468142,-500.0,0.00043835,4]
[321080018,1711883468151,-4752.87,0.00043835,4]
[321080019,1711883468160,-500.0,0.00043835,4]
[321080020,1711883468169,-2598.4,0.00043835,4]
[321080021,1711883468178,-2126.31,0.00043835,4]
[321080022,1711883468188,-11877.83,0.00043835,4]
[321080023,1711883468198,-518.02,0.00043835,4]
[321080024,1711883468207,-1937.78,0.00043835,4]
[321080025,1711883468217,-10453.94,0.00043835,4]
[321080026,1711883468226,-1076.45,0.00043835,4]
[321080027,1711883468236,-469.38595328,0.00043835,4]
[321080028,1711883468245,-500.0,0.00043835,4]
[321080029,1711883468255,-500.0,0.00043835,4]
[321080030,1711883468265,-2336.79,0.00043835,4]
[321080031,1711883468274,-552.15,0.00043835,4]
[321080032,1711883468284,-1920.41,0.00043835,4]
[321080033,1711883468293,-2290.08,0.00043835,4]
[321080034,1711883468303,-1182.09,0.00043835,4]
[321080035,1711883468312,-3941.13,0.00043835,4]
[321080036,1711883468322,-2482.25,0.00043835,4]
[321080037,1711883468331,-16241.59,0.00043835,4]
[321080038,1711883468341,-3222.61,0.00043835,4]
[321080039,1711883468351,-500.0,0.00043835,4]
[321080040,1711883468361,-535.83,0.00043835,4]
[321080041,1711883468370,-500.0,0.00043835,4]
[321080042,1711883468379,-2590.66,0.00043835,4]
[321080043,1711883468388,-609.57,0.00043835,4]
[321080044,1711883468398,-3509.53,0.00043835,4]
[321080045,1711883468408,-500.0,0.00043835,4]
[321080046,1711883468420,-5528.21,0.00043835,4]
[321080047,1711883468429,-2238.05,0.00043835,4]
[321080048,1711883468438,-663.74,0.00043835,4]
[321080049,1711883468447,-2433.18,0.00043835,4]
[321080050,1711883468457,-18780.41,0.00043835,4]
[321080051,1711883468466,-502.77,0.00043835,4]
[321080052,1711883468475,-1950.88,0.00043835,4]
[321080053,1711883468485,-500.0,0.00043835,4]
[321080054,1711883468494,-608.39,0.00043835,4]
[321080055,1711883468503,-16662.45,0.00043835,4]
[321080056,1711883468512,-1551.3,0.00043835,4]
[321080057,1711883468522,-682.79,0.00043835,4]
[321080058,1711883468531,-254.41187412,0.00043835,4]
[321080059,1711883468540,-4294.08,0.00043835,4]
[321080060,1711883468550,-935.22,0.00043835,4]
[321080061,1711883468560,-1935.59,0.00043835,4]
[321080062,1711883468569,-8286.43,0.00043836,2]
[321080063,1711883468579,-1133.38715573,0.00043836,14]
[321080064,1711883468590,-500.0,0.00043836,19]
[321080065,1711883468599,-152.35,0.00043898,15]
[321080066,1711883468609,-474.45,0.000439,7]
[321080067,1711883468618,-7158.0,0.00043922,10]
[321080068,1711883468627,-599.99999905,0.00044,45]
[321080069,1711883468636,-15987.00124111,0.00044,2]
[321080070,1711883468646,-1003.957641,0.00044,20]
[321080071,1711883468655,-12625.0,0.00044,2]
[321080072,1711883468664,-150.0,0.00044,10]
[321080073,1711883468673,-500.0,0.00044,80]
[321080074,1711883468683,-2931.311406,0.00044,44]
[321080075,1711883468692,-749.0,0.00044,33]
[321080076,1711883468701,-150.0,0.00044058,120]
[321080077,1711883468710,-500.0,0.00044109,4]
[321080078,1711883468719,-679.43,0.00044109,2]
[321080079,1711883468728,-555.12,0.00044109,4]
[321080080,1711883468738,-500.0,0.00044109,2]
[321080081,1711883468747,-549.48,0.00044109,4]
[321080082,1711883468757,-1070.48,0.00044109,4]
[321080083,1711883468766,-481.15343517,0.00044109,4]
[321080084,1711883468775,-500.0,0.00044109,4]
[321080085,1711883468784,-500.0,0.00044109,4]
[321080086,1711883468793,-1862.31,0.00044109,4]
[321080087,1711883468802,-2605.92,0.00044109,4]
[321080088,1711883468812,-9670.17,0.00044109,4]
[321080089,1711883468821,-1122.17,0.00044109,4]
[321080090,1711883468830,-500.0,0.00044109,4]
[321080091,1711883468840,-1712.16,0.00044109,4]
[321080092,1711883468848,-2748.38,0.00044109,4]
[321080093,1711883468857,-500.0,0.00044109,4]
[321080094,1711883468866,-500.0,0.00044109,4]
[321080095,1711883468876,-4301.58,0.00044109,4]
[321080096,1711883468885,-531.6,0.00044109,4]
[321080097,1711883468894,-500.0,0.00044109,4]
[321080098,1711883468903,-500.0,0.00044109,4]
[321080099,1711883468912,-9908.7,0.00044109,4]
[321080100,1711883468921,-3656.45,0.00044109,4]
[321080101,1711883468930,-707.92,0.00044109,4]
[321080102,1711883468939,-2921.85,0.00044109,4]
[321080103,1711883468948,-500.0,0.00044109,4]
[321080104,1711883468958,-500.0,0.00044109,4]
[321080105,1711883468967,-3783.97,0.00044109,4]
[321080106,1711883468977,-2102.16,0.00044109,4]
[321080107,1711883468987,-500.0,0.00044109,4]
[321080108,1711883468996,-15160.16,0.00044109,4]
[321080109,1711883469006,-2273.33,0.00044109,4]
[321080110,1711883469015,-1657.86,0.00044109,4]
[321080111,1711883469025,-588.1,0.00044109,16]
[321080112,1711883469034,-3435.73,0.00044109,4]
[321080113,1711883469044,-500.0,0.00044109,4]
[321080114,1711883469053,-500.0,0.00044109,4]
[321080115,1711883469063,-3547.44,0.00044109,4]
[321080116,1711883469074,-2803.49,0.00044109,4]
[321080117,1711883469083,-500.0,0.00044109,4]
[321080118,1711883469094,-591.98704018,0.00044109,4]
[321080119,1711883469104,-4194.52,0.00044109,4]
[321080120,1711883469114,-9215.25,0.00044109,4]
[321080121,1711883469124,-500.0,0.00044109,4]
[321080122,1711883469134,-500.0,0.00044109,4]
[321080123,1711883469144,-2011.87,0.00044109,4]
[321080124,1711883469153,-500.0,0.00044109,4]
[321080125,1711883469162,-500.0,0.00044109,4]
[321080126,1711883469172,-4752.87,0.00044109,4]
[321080127,1711883469181,-500.0,0.00044109,4]
[321080128,1711883469190,-2598.4,0.00044109,4]
[321080129,1711883469200,-2126.31,0.00044109,4]
[321080130,1711883469208,-11877.83,0.00044109,4]
[321080131,1711883469218,-518.02,0.00044109,4]
[321080132,1711883469227,-1937.78,0.00044109,4]
[321080133,1711883469237,-10453.94,0.00044109,4]
[321080134,1711883469247,-1076.45,0.00044109,4]
[321080135,1711883469256,-500.0,0.00044109,4]
[321080136,1711883469265,-500.0,0.00044109,4]
[321080137,1711883469274,-2336.79,0.00044109,4]
[321080138,1711883469283,-552.15,0.00044109,4]
[321080139,1711883469293,-1920.41,0.00044109,4]
[321080140,1711883469302,-2290.08,0.00044109,4]
[321080141,1711883469311,-1182.09,0.00044109,4]
[321080142,1711883469321,-3941.13,0.00044109,4]
[321080143,1711883469331,-16241.59,0.00044109,4]
[321080144,1711883469340,-2482.25,0.00044109,4]
[321080145,1711883469353,-3222.61,0.00044109,4]
[321080146,1711883469363,-234.21999093,0.00044109,4]
[321080147,1711883469372,-535.83,0.00044109,4]
[321080148,1711883469381,-500.0,0.00044109,4]
[321080149,1711883469390,-2590.66,0.00044109,4]
[321080150,1711883469400,-609.57,0.00044109,4]
[321080151,1711883469410,-3509.53,0.00044109,4]
[321080152,1711883469421,-500.0,0.00044109,4]
[321080153,1711883469431,-5528.21,0.00044109,4]
[321080154,1711883469440,-2238.05,0.00044109,4]
[321080155,1711883469449,-663.74,0.00044109,4]
[321080156,1711883469458,-2433.18,0.00044109,4]
[321080157,1711883469469,-18780.41,0.00044109,4]
[321080158,1711883469479,-502.77,0.00044109,4]
[321080159,1711883469489,-1950.88,0.00044109,4]
[321080160,1711883469501,-500.0,0.00044109,4]
[321080161,1711883469510,-608.39,0.00044109,4]
[321080162,1711883469520,-16662.45,0.00044109,4]
[321080163,1711883469529,-1551.3,0.00044109,4]
[321080164,1711883469539,-682.79,0.00044109,4]
[321080165,1711883469548,-4294.08,0.00044109,4]
[321080166,1711883469557,-935.22,0.00044109,4]
[321080167,1711883469567,-1935.59,0.00044109,4]
[321080168,1711883469576,-481.97,0.000442,7]
[321080169,1711883469585,-545.59,0.000442,7]
[321080170,1711883469595,-166.73145783,0.00044204,30]
[321080171,1711883469604,-2358.1074209,0.00044353,2]
[321080172,1711883469613,-500.0,0.00044383,4]
[321080173,1711883469622,-679.43,0.00044383,2]
[321080174,1711883469631,-555.12,0.00044383,4]
[321080175,1711883469641,-500.0,0.00044383,2]
[321080176,1711883469650,-549.48,0.00044383,4]
[321080177,1711883469659,-1070.48,0.00044383,4]
[321080178,1711883469669,-500.0,0.00044383,4]
[321080179,1711883469677,-500.0,0.00044383,4]
[321080180,1711883469686,-1862.31,0.00044383,4]
[321080181,1711883469696,-2605.92,0.00044383,4]
[321080182,1711883469705,-9670.17,0.00044383,4]
[321080183,1711883469713,-1122.17,0.00044383,4]
[321080184,1711883469722,-500.0,0.00044383,4]
[321080185,1711883469731,-1712.16,0.00044383,4]
[321080186,1711883469740,-2748.38,0.00044383,4]
[321080187,1711883469749,-500.0,0.00044383,4]
[321080188,1711883469758,-500.0,0.00044383,4]
[321080189,1711883469768,-4301.58,0.00044383,4]
[321080190,1711883469777,-531.6,0.00044383,4]
[321080191,1711883469786,-500.0,0.00044383,4]
[321080192,1711883469795,-500.0,0.00044383,4]
[321080193,1711883469804,-9908.7,0.00044383,4]
[321080194,1711883469813,-3656.45,0.00044383,4]
[321080195,1711883469822,-707.92,0.00044383,4]
[321080196,1711883469832,-2921.85,0.00044383,4]
[321080197,1711883469842,-500.0,0.00044383,4]
[321080198,1711883469851,-500.0,0.00044383,4]
[321080199,1711883469860,-3783.97,0.00044383,4]
[321080200,1711883469869,-2102.16,0.00044383,4]
[321080201,1711883469878,-15160.16,0.00044383,4]
[321080202,1711883469887,-500.0,0.00044383,4]
[321080203,1711883469896,-2273.33,0.00044383,4]
[321080204,1711883469905,-1657.86,0.00044383,4]
[321080205,1711883469915,-588.1,0.00044383,16]
[321080206,1711883469924,-3435.73,0.00044383,4]
[321080207,1711883469934,-553.17986402,0.00044383,4]
[321080208,1711883469943,-500.0,0.00044383,4]
[321080209,1711883469952,-3547.44,0.00044383,4]
[321080210,1711883469961,-2803.49,0.00044383,4]
[321080211,1711883469971,-500.0,0.00044383,4]
[321080212,1711883469981,-4194.52,0.00044383,4]
[321080213,1711883469991,-9215.25,0.00044383,4]
[321080214,1711883470001,-500.0,0.00044383,4]
[321080215,1711883470010,-500.0,0.00044383,4]
[321080216,1711883470020,-2011.87,0.00044383,4]
[321080217,1711883470029,-500.0,0.00044383,4]
[321080218,1711883470038,-500.0,0.00044383,4]
[321080219,1711883470048,-4752.87,0.00044383,4]
[321080220,1711883470057,-500.0,0.00044383,4]
[321080221,1711883470067,-2598.4,0.00044383,4]
[321080222,1711883470076,-2126.31,0.00044383,4]
[321080223,1711883470085,-11877.83,0.00044383,4]
[321080224,1711883470096,-518.02,0.00044383,4]
[321080225,1711883470105,-1937.78,0.00044383,4]
[321080226,1711883470115,-10453.94,0.00044383,4]
[321080227,1711883470124,-1076.45,0.00044383,4]
[321080228,1711883470134,-500.0,0.00044383,4]
[321080229,1711883470143,-500.0,0.00044383,4]
[321080230,1711883470153,-2336.79,0.00044383,4]
[321080231,1711883470163,-552.15,0.00044383,4]
[321080232,1711883470174,-1920.41,0.00044383,4]
[321080233,1711883470183,-2290.08,0.00044383,4]
[321080234,1711883470193,-1182.09,0.00044383,4]
[321080235,1711883470203,-3941.13,0.00044383,4]
[321080236,1711883470213,-16241.59,0.00044383,4]
[321080237,1711883470223,-2482.25,0.00044383,4]
[321080238,1711883470233,-3222.61,0.00044383,4]
[321080239,1711883470243,-535.83,0.00044383,4]
[321080240,1711883470253,-500.0,0.00044383,4]
[321080241,1711883470262,-2590.66,0.00044383,4]